[Event "Titled Tuesday Blitz January 31 Early 2023"]
[White "Cherniaiev, Tykhon"]
[Black "Astafurov, Arseniy"]
[WhiteFideId "14182360"]
[BlackFideId "24175218"]
[WhiteElo "2330"]
[BlackElo "2263"]
[Result "1/2-1/2"]
[Round "03"]
[TimeControl "180+2"]
[Date "2023.01.31"]
[WhiteClock "0:00:07"]
[BlackClock "0:00:09"]

1. Nf3 {[%clk 0:03:00]}  d5 {[%clk 0:02:53]} 2. d4 {[%clk 0:02:58]}  Nf6 {[%clk 0:02:53]} 3. c4 {[%clk 0:02:58]}  c6 {[%clk 0:02:53]} 4. e3 {[%clk 0:02:57]}  a6 {[%clk 0:02:54]} 5. Nbd2 {[%clk 0:02:55]}  Bg4 {[%clk 0:02:50]} 6. Bd3 {[%clk 0:02:55]}  e6 {[%clk 0:02:50]} 7. O-O {[%clk 0:02:54]}  Nbd7 {[%clk 0:02:51]} 8. b3 {[%clk 0:02:54]}  Bd6 {[%clk 0:02:51]} 9. Bb2 {[%clk 0:02:55]}  Qe7 {[%clk 0:02:50]} 10. h3 {[%clk 0:02:54]}  Bh5 {[%clk 0:02:51]} 11. e4 {[%clk 0:02:54]}  dxe4 {[%clk 0:02:50]} 12. Nxe4 {[%clk 0:02:55]}  Nxe4 {[%clk 0:02:50]} 13. Bxe4 {[%clk 0:02:55]}  O-O {[%clk 0:02:49]} 14. Re1 {[%clk 0:02:54]}  Ba3 {[%clk 0:02:48]} 15. Bxa3 {[%clk 0:02:27]}  Qxa3 {[%clk 0:02:49]} 16. Qd2 {[%clk 0:02:16]}  Nf6 {[%clk 0:02:47]} 17. Qf4 {[%clk 0:02:14]}  Nxe4 {[%clk 0:02:43]} 18. Qxe4 {[%clk 0:02:15]}  Rad8 {[%clk 0:02:33]} 19. Ne5 {[%clk 0:01:50]}  Qb2 {[%clk 0:02:20]} 20. Qh4 {[%clk 0:01:48]}  Bg6 {[%clk 0:01:38]} 21. Nxg6 {[%clk 0:01:37]}  hxg6 {[%clk 0:01:39]} 22. Red1 {[%clk 0:01:33]}  Rd7 {[%clk 0:01:39]} 23. Rab1 {[%clk 0:01:01]}  Qxa2 {[%clk 0:01:34]} 24. Qe4 {[%clk 0:00:54]}  Rfd8 {[%clk 0:01:29]} 25. Qh4 {[%clk 0:00:32]}  Qc2 {[%clk 0:01:17]} 26. Kf1 {[%clk 0:00:19]}  Qc3 {[%clk 0:00:55]} 27. d5 {[%clk 0:00:15]}  cxd5 {[%clk 0:00:56]} 28. cxd5 {[%clk 0:00:15]}  exd5 {[%clk 0:00:41]} 29. Rd4 {[%clk 0:00:15]}  Qc2 {[%clk 0:00:35]} 30. Rbd1 {[%clk 0:00:14]}  Qxb3 {[%clk 0:00:34]} 31. Kg1 {[%clk 0:00:15]}  Qb5 {[%clk 0:00:34]} 32. Qg5 {[%clk 0:00:15]}  a5 {[%clk 0:00:33]} 33. h4 {[%clk 0:00:15]}  Qc6 {[%clk 0:00:32]} 34. h5 {[%clk 0:00:16]}  Qf6 {[%clk 0:00:32]} 35. Qg4 {[%clk 0:00:16]}  Qf5 {[%clk 0:00:31]} 36. Qg3 {[%clk 0:00:16]}  gxh5 {[%clk 0:00:29]} 37. Rf4 {[%clk 0:00:15]}  Qe5 {[%clk 0:00:26]} 38. Qf3 {[%clk 0:00:11]}  d4 {[%clk 0:00:23]} 39. Rf5 {[%clk 0:00:11]}  Qe6 {[%clk 0:00:20]} 40. Rxh5 {[%clk 0:00:12]}  g6 {[%clk 0:00:20]} 41. Rxa5 {[%clk 0:00:12]}  d3 {[%clk 0:00:19]} 42. Qf4 {[%clk 0:00:06]}  d2 {[%clk 0:00:17]} 43. Raa1 {[%clk 0:00:07]}  Kg7 {[%clk 0:00:15]} 44. Qg3 {[%clk 0:00:05]}  Qf6 {[%clk 0:00:15]} 45. Qe3 {[%clk 0:00:05]}  b5 {[%clk 0:00:14]} 46. Rab1 {[%clk 0:00:05]}  Rd5 {[%clk 0:00:13]} 47. Qe2 {[%clk 0:00:06]}  Qc3 {[%clk 0:00:12]} 48. Rxb5 {[%clk 0:00:05]}  Rxb5 {[%clk 0:00:13]} 49. Qxb5 {[%clk 0:00:06]}  Qc1 {[%clk 0:00:07]} 50. Qe2 {[%clk 0:00:06]}  Qc3 {[%clk 0:00:06]} 51. g3 {[%clk 0:00:06]}  Rd6 {[%clk 0:00:06]} 52. Qe4 {[%clk 0:00:05]}  Qf6 {[%clk 0:00:05]} 53. Qc2 {[%clk 0:00:04]}  Qd8 {[%clk 0:00:05]} 54. Kg2 {[%clk 0:00:04]}  Kg8 {[%clk 0:00:05]} 55. Qb2 {[%clk 0:00:04]}  Rd3 {[%clk 0:00:06]} 56. Qc2 {[%clk 0:00:04]}  Qd5+ {[%clk 0:00:06]} 57. Kg1 {[%clk 0:00:04]}  Qd4 {[%clk 0:00:07]} 58. Kg2 {[%clk 0:00:02]}  Kg7 {[%clk 0:00:07]} 59. Qa2 {[%clk 0:00:01]}  Qd6 {[%clk 0:00:07]} 60. Qc2 {[%clk 0:00:02]}  Qd5+ {[%clk 0:00:07]} 61. Kg1 {[%clk 0:00:02]}  Qd4 {[%clk 0:00:07]} 62. Kg2 {[%clk 0:00:03]}  Qd6 {[%clk 0:00:07]} 63. Kg1 {[%clk 0:00:03]}  Qd7 {[%clk 0:00:08]} 64. Kg2 {[%clk 0:00:03]}  g5 {[%clk 0:00:08]} 65. Kg1 {[%clk 0:00:04]}  Qd5 {[%clk 0:00:09]} 66. Qb2+ {[%clk 0:00:03]}  Kg8 {[%clk 0:00:05]} 67. Qb8+ {[%clk 0:00:03]}  Kg7 {[%clk 0:00:06]} 68. Qb2+ {[%clk 0:00:04]}  f6 {[%clk 0:00:06]} 69. Qc2 {[%clk 0:00:04]}  Qd4 {[%clk 0:00:05]} 70. Qc7+ {[%clk 0:00:04]}  Kg6 {[%clk 0:00:05]} 71. Qb8 {[%clk 0:00:04]}  Kg7 {[%clk 0:00:04]} 72. Qc7+ {[%clk 0:00:04]}  Kg6 {[%clk 0:00:04]} 73. Qb8 {[%clk 0:00:04]}  Qd5 {[%clk 0:00:04]} 74. Qe8+ {[%clk 0:00:04]}  Kg7 {[%clk 0:00:04]} 75. Qe7+ {[%clk 0:00:04]}  Kg6 {[%clk 0:00:05]} 76. Qe8+ {[%clk 0:00:04]}  Kg7 {[%clk 0:00:06]} 77. Qe7+ {[%clk 0:00:05]}  Qf7 {[%clk 0:00:06]} 78. Qe2 {[%clk 0:00:04]}  Qd7 {[%clk 0:00:06]} 79. Qe4 {[%clk 0:00:05]}  Rd4 {[%clk 0:00:06]} 80. Qe2 {[%clk 0:00:05]}  Qd6 {[%clk 0:00:06]} 81. Qe3 {[%clk 0:00:04]}  Rd3 {[%clk 0:00:06]} 82. Qe2 {[%clk 0:00:05]}  Kg6 {[%clk 0:00:06]} 83. Qe4+ {[%clk 0:00:05]}  Kg7 {[%clk 0:00:06]} 84. Qe2 {[%clk 0:00:04]}  Qd4 {[%clk 0:00:07]} 85. Qe7+ {[%clk 0:00:04]}  Kg6 {[%clk 0:00:08]} 86. Qe8+ {[%clk 0:00:05]}  Kg7 {[%clk 0:00:08]} 87. Qe7+ {[%clk 0:00:05]}  Kg6 {[%clk 0:00:09]} 88. Qe8+ {[%clk 0:00:06]}  Kg7 {[%clk 0:00:09]} 89. Qe7+ {[%clk 0:00:07]} 1/2-1/2


[Site "https://www.chess.com"]

[Event "Titled Tuesday Blitz January 31 Early 2023"]
[White "Gressmann, Moritz"]
[Black "Averjanov, Alexey"]
[WhiteFideId "24695084"]
[BlackFideId "14109867"]
[WhiteElo "2129"]
[BlackElo "2399"]
[Result "1/2-1/2"]
[Round "03"]
[TimeControl "180+2"]
[Date "2023.01.31"]
[WhiteClock "0:00:14"]
[BlackClock "0:00:09"]

1. e4 {[%clk 0:03:00]}  c6 {[%clk 0:03:00]} 2. d4 {[%clk 0:02:59]}  d5 {[%clk 0:03:00]} 3. exd5 {[%clk 0:02:59]}  cxd5 {[%clk 0:03:00]} 4. Bd3 {[%clk 0:03:00]}  Nc6 {[%clk 0:03:00]} 5. c3 {[%clk 0:02:59]}  Nf6 {[%clk 0:02:58]} 6. Nf3 {[%clk 0:02:54]}  Bg4 {[%clk 0:02:56]} 7. h3 {[%clk 0:02:54]}  Bh5 {[%clk 0:02:56]} 8. O-O {[%clk 0:02:51]}  e6 {[%clk 0:02:55]} 9. Nbd2 {[%clk 0:02:51]}  Be7 {[%clk 0:02:55]} 10. Qb3 {[%clk 0:02:45]}  Qc7 {[%clk 0:02:53]} 11. Re1 {[%clk 0:02:45]}  O-O {[%clk 0:02:52]} 12. Ne5 {[%clk 0:02:41]}  Nxe5 {[%clk 0:02:48]} 13. dxe5 {[%clk 0:02:40]}  Nd7 {[%clk 0:02:48]} 14. Qc2 {[%clk 0:02:32]}  Nxe5 {[%clk 0:02:39]} 15. Bxh7+ {[%clk 0:02:28]}  Kh8 {[%clk 0:02:39]} 16. Bd3 {[%clk 0:02:26]}  Nxd3 {[%clk 0:02:36]} 17. Qxd3 {[%clk 0:02:24]}  Bg6 {[%clk 0:02:36]} 18. Qf3 {[%clk 0:02:18]}  Bc5 {[%clk 0:02:35]} 19. Nf1 {[%clk 0:02:18]}  Kg8 {[%clk 0:02:31]} 20. Be3 {[%clk 0:02:17]}  b5 {[%clk 0:02:28]} 21. Bxc5 {[%clk 0:02:11]}  Qxc5 {[%clk 0:02:28]} 22. Ne3 {[%clk 0:02:11]}  b4 {[%clk 0:02:26]} 23. Rac1 {[%clk 0:02:10]}  bxc3 {[%clk 0:02:25]} 24. bxc3 {[%clk 0:02:09]}  Rfc8 {[%clk 0:02:23]} 25. Ng4 {[%clk 0:02:07]}  Bf5 {[%clk 0:02:16]} 26. Ne5 {[%clk 0:02:03]}  Rc7 {[%clk 0:02:02]} 27. g4 {[%clk 0:01:55]}  Be4 {[%clk 0:02:01]} 28. Qf4 {[%clk 0:01:54]}  Rac8 {[%clk 0:01:56]} 29. c4 {[%clk 0:01:47]}  Qe7 {[%clk 0:01:50]} 30. cxd5 {[%clk 0:01:43]}  Bxd5 {[%clk 0:01:47]} 31. Rxc7 {[%clk 0:01:34]}  Rxc7 {[%clk 0:01:48]} 32. a4 {[%clk 0:01:26]}  Qa3 {[%clk 0:01:39]} 33. Kh2 {[%clk 0:01:07]}  f6 {[%clk 0:01:24]} 34. Ng6 {[%clk 0:01:02]}  e5 {[%clk 0:00:47]} 35. Qf5 {[%clk 0:00:56]}  Rc3 {[%clk 0:00:32]} 36. Re3 {[%clk 0:00:39]}  Rxe3 {[%clk 0:00:32]} 37. fxe3 {[%clk 0:00:39]}  Qc5 {[%clk 0:00:26]} 38. h4 {[%clk 0:00:31]}  a5 {[%clk 0:00:16]} 39. h5 {[%clk 0:00:30]}  Bf7 {[%clk 0:00:13]} 40. Qd7 {[%clk 0:00:26]}  Bxg6 {[%clk 0:00:08]} 41. hxg6 {[%clk 0:00:26]}  Qc2+ {[%clk 0:00:08]} 42. Kg3 {[%clk 0:00:26]}  Qxg6 {[%clk 0:00:09]} 43. Qd8+ {[%clk 0:00:24]}  Kh7 {[%clk 0:00:09]} 44. Qxa5 {[%clk 0:00:25]}  Qe4 {[%clk 0:00:09]} 45. Qa7 {[%clk 0:00:17]}  f5 {[%clk 0:00:07]} 46. gxf5 {[%clk 0:00:15]}  Qxf5 {[%clk 0:00:08]} 47. a5 {[%clk 0:00:15]}  Qg5+ {[%clk 0:00:08]} 48. Kf3 {[%clk 0:00:16]}  Qf5+ {[%clk 0:00:08]} 49. Ke2 {[%clk 0:00:16]}  Qc2+ {[%clk 0:00:08]} 50. Kf3 {[%clk 0:00:16]}  Qf5+ {[%clk 0:00:09]} 51. Ke2 {[%clk 0:00:16]}  Qc2+ {[%clk 0:00:09]} 52. Kf3 {[%clk 0:00:14]}  Qf5+ {[%clk 0:00:09]} 1/2-1/2


[Site "https://www.chess.com"]

[Event "Titled Tuesday Blitz January 31 Early 2023"]
[White "Malek, Jan"]
[Black "Manon-og, Ramon Jr."]
[WhiteFideId "21864080"]
[BlackFideId "5200776"]
[WhiteElo "2370"]
[BlackElo "1999"]
[Result "1-0"]
[Round "03"]
[TimeControl "180+2"]
[Date "2023.01.31"]
[WhiteClock "0:00:03"]
[BlackClock "0:00:01"]

1. c4 {[%clk 0:03:00]}  Nf6 {[%clk 0:02:46]} 2. g3 {[%clk 0:02:57]}  g6 {[%clk 0:02:44]} 3. Bg2 {[%clk 0:02:55]}  c6 {[%clk 0:02:44]} 4. Nf3 {[%clk 0:02:55]}  Bg7 {[%clk 0:02:43]} 5. O-O {[%clk 0:02:54]}  d5 {[%clk 0:02:42]} 6. d3 {[%clk 0:02:54]}  O-O {[%clk 0:02:41]} 7. Qb3 {[%clk 0:02:54]}  d4 {[%clk 0:02:38]} 8. e3 {[%clk 0:02:48]}  dxe3 {[%clk 0:02:37]} 9. Bxe3 {[%clk 0:02:47]}  Nbd7 {[%clk 0:02:32]} 10. Nc3 {[%clk 0:02:46]}  e5 {[%clk 0:02:31]} 11. Rad1 {[%clk 0:02:44]}  Re8 {[%clk 0:02:29]} 12. Rfe1 {[%clk 0:02:43]}  Qe7 {[%clk 0:02:23]} 13. d4 {[%clk 0:02:29]}  exd4 {[%clk 0:02:19]} 14. Nxd4 {[%clk 0:02:25]}  Nc5 {[%clk 0:02:11]} 15. Qa3 {[%clk 0:02:25]}  Nce4 {[%clk 0:02:08]} 16. Nxe4 {[%clk 0:01:56]}  Nxe4 {[%clk 0:02:04]} 17. Qxe7 {[%clk 0:01:29]}  Rxe7 {[%clk 0:02:02]} 18. Nxc6 {[%clk 0:01:12]}  bxc6 {[%clk 0:02:00]} 19. Rd8+ {[%clk 0:01:09]}  Bf8 {[%clk 0:01:55]} 20. Bh6 {[%clk 0:01:02]}  Bb7 {[%clk 0:01:54]} 21. Bxf8 {[%clk 0:01:02]}  Re6 {[%clk 0:01:25]} 22. Rxa8 {[%clk 0:00:39]}  Bxa8 {[%clk 0:01:26]} 23. Rxe4 {[%clk 0:00:35]}  Rxe4 {[%clk 0:01:17]} 24. Bxe4 {[%clk 0:00:36]}  Kxf8 {[%clk 0:01:16]} 25. f4 {[%clk 0:00:34]}  Ke7 {[%clk 0:01:15]} 26. Kf2 {[%clk 0:00:34]}  Kd6 {[%clk 0:01:15]} 27. b4 {[%clk 0:00:35]}  Bb7 {[%clk 0:01:10]} 28. Ke3 {[%clk 0:00:35]}  Bc8 {[%clk 0:01:07]} 29. Kd4 {[%clk 0:00:35]}  Be6 {[%clk 0:01:05]} 30. a4 {[%clk 0:00:35]}  a6 {[%clk 0:01:03]} 31. c5+ {[%clk 0:00:22]}  Kc7 {[%clk 0:01:02]} 32. Ke5 {[%clk 0:00:22]}  Bb3 {[%clk 0:00:43]} 33. a5 {[%clk 0:00:20]}  Bc4 {[%clk 0:00:43]} 34. Kf6 {[%clk 0:00:19]}  Bd5 {[%clk 0:00:31]} 35. Bd3 {[%clk 0:00:14]}  Kb7 {[%clk 0:00:29]} 36. Ke7 {[%clk 0:00:14]}  Bb3 {[%clk 0:00:18]} 37. g4 {[%clk 0:00:13]}  h6 {[%clk 0:00:15]} 38. Be4 {[%clk 0:00:10]}  Kc7 {[%clk 0:00:14]} 39. Bd3 {[%clk 0:00:10]}  Kb7 {[%clk 0:00:13]} 40. Kd6 {[%clk 0:00:07]}  Bd5 {[%clk 0:00:11]} 41. h4 {[%clk 0:00:08]}  Bf3 {[%clk 0:00:06]} 42. f5 {[%clk 0:00:04]}  Bxg4 {[%clk 0:00:04]} 43. f6 {[%clk 0:00:04]}  Bf3 {[%clk 0:00:03]} 44. Bc4 {[%clk 0:00:03]}  Bd5 {[%clk 0:00:01]} 45. Bxd5 {[%clk 0:00:03]} 1-0


[Site "https://www.chess.com"]

[Event "Titled Tuesday Blitz January 31 Early 2023"]
[White "Kubicka, Anna"]
[Black "Bluebaum, Matthias"]
[WhiteFideId "1152254"]
[BlackFideId "24651516"]
[WhiteElo "2240"]
[BlackElo "2669"]
[Result "0-1"]
[Round "03"]
[TimeControl "180+2"]
[Date "2023.01.31"]
[WhiteClock "0:02:09"]
[BlackClock "0:02:40"]

1. e4 {[%clk 0:03:00]}  e6 {[%clk 0:03:00]} 2. d4 {[%clk 0:03:00]}  d5 {[%clk 0:03:01]} 3. Nd2 {[%clk 0:02:58]}  c5 {[%clk 0:03:01]} 4. exd5 {[%clk 0:02:58]}  Qxd5 {[%clk 0:03:02]} 5. Ngf3 {[%clk 0:02:57]}  cxd4 {[%clk 0:03:02]} 6. Bc4 {[%clk 0:02:57]}  Qd6 {[%clk 0:03:03]} 7. O-O {[%clk 0:02:57]}  Nf6 {[%clk 0:03:04]} 8. Nb3 {[%clk 0:02:57]}  Nc6 {[%clk 0:03:04]} 9. Nbxd4 {[%clk 0:02:58]}  Nxd4 {[%clk 0:03:05]} 10. Nxd4 {[%clk 0:02:58]}  Be7 {[%clk 0:03:06]} 11. Nb5 {[%clk 0:02:56]}  Qc6 {[%clk 0:03:05]} 12. Qe2 {[%clk 0:02:51]}  O-O {[%clk 0:03:03]} 13. Bf4 {[%clk 0:02:47]}  a6 {[%clk 0:03:01]} 14. Nc7 {[%clk 0:02:40]}  Ra7 {[%clk 0:03:01]} 15. Be3 {[%clk 0:02:11]}  Bc5 {[%clk 0:02:49]} 16. b4 {[%clk 0:02:08]}  Bxe3 {[%clk 0:02:44]} 17. Qxe3 {[%clk 0:02:09]}  b6 {[%clk 0:02:40]} 0-1


[Site "https://www.chess.com"]

[Event "Titled Tuesday Blitz January 31 Early 2023"]
[White "Kozak, Adam"]
[Black "Ilkhomi, Jaloliddin"]
[WhiteFideId "753246"]
[BlackFideId "14700948"]
[WhiteElo "2572"]
[BlackElo "1997"]
[Result "1-0"]
[Round "03"]
[TimeControl "180+2"]
[Date "2023.01.31"]
[WhiteClock "0:00:07"]
[BlackClock "0:00:12"]

1. Nf3 {[%clk 0:02:57]}  Nf6 {[%clk 0:02:59]} 2. b3 {[%clk 0:02:57]}  d5 {[%clk 0:02:58]} 3. Bb2 {[%clk 0:02:56]}  e6 {[%clk 0:02:51]} 4. g3 {[%clk 0:02:50]}  b6 {[%clk 0:02:51]} 5. Bg2 {[%clk 0:02:47]}  Bb7 {[%clk 0:02:52]} 6. O-O {[%clk 0:02:44]}  Nbd7 {[%clk 0:02:52]} 7. c4 {[%clk 0:02:36]}  Bd6 {[%clk 0:02:48]} 8. e3 {[%clk 0:02:32]}  O-O {[%clk 0:02:48]} 9. Nc3 {[%clk 0:02:32]}  a6 {[%clk 0:02:48]} 10. Qe2 {[%clk 0:02:31]}  c5 {[%clk 0:02:48]} 11. Rad1 {[%clk 0:02:31]}  Qc7 {[%clk 0:02:48]} 12. Rfe1 {[%clk 0:02:30]}  Rad8 {[%clk 0:02:48]} 13. cxd5 {[%clk 0:02:30]}  Nxd5 {[%clk 0:02:45]} 14. Nxd5 {[%clk 0:02:28]}  Bxd5 {[%clk 0:02:46]} 15. d4 {[%clk 0:02:23]}  cxd4 {[%clk 0:02:45]} 16. e4 {[%clk 0:02:22]}  Ba8 {[%clk 0:02:42]} 17. Bxd4 {[%clk 0:02:16]}  Bb4 {[%clk 0:02:39]} 18. Rc1 {[%clk 0:02:13]}  Qb7 {[%clk 0:02:39]} 19. Red1 {[%clk 0:02:13]}  Qxe4 {[%clk 0:02:36]} 20. Qxa6 {[%clk 0:02:08]}  Nc5 {[%clk 0:01:45]} 21. Qxb6 {[%clk 0:01:52]}  Nd3 {[%clk 0:01:33]} 22. Ra1 {[%clk 0:00:39]}  Qe2 {[%clk 0:01:09]} 23. Nh4 {[%clk 0:00:20]}  Rd6 {[%clk 0:00:25]} 24. Qa7 {[%clk 0:00:16]}  g5 {[%clk 0:00:15]} 25. Be3 {[%clk 0:00:09]}  gxh4 {[%clk 0:00:13]} 26. Bxa8 {[%clk 0:00:09]}  hxg3 {[%clk 0:00:13]} 27. hxg3 {[%clk 0:00:10]}  Rfd8 {[%clk 0:00:08]} 28. Rf1 {[%clk 0:00:09]}  Ne5 {[%clk 0:00:07]} 29. Bg2 {[%clk 0:00:08]}  Nf3+ {[%clk 0:00:08]} 30. Bxf3 {[%clk 0:00:08]}  Qxf3 {[%clk 0:00:09]} 31. Qa4 {[%clk 0:00:07]}  Bd2 {[%clk 0:00:08]} 32. Bxd2 {[%clk 0:00:06]}  Rxd2 {[%clk 0:00:08]} 33. Qh4 {[%clk 0:00:06]}  R2d4 {[%clk 0:00:07]} 34. Qg5+ {[%clk 0:00:06]}  Kf8 {[%clk 0:00:06]} 35. Rae1 {[%clk 0:00:07]}  Rd2 {[%clk 0:00:05]} 36. Re3 {[%clk 0:00:06]}  Qd5 {[%clk 0:00:03]} 37. Qh4 {[%clk 0:00:06]}  h5 {[%clk 0:00:02]} 38. Qf4 {[%clk 0:00:05]}  Ke8 {[%clk 0:00:02]} 39. Re5 {[%clk 0:00:05]}  Qd6 {[%clk 0:00:02]} 40. Qe3 {[%clk 0:00:05]}  Rd1 {[%clk 0:00:02]} 41. Rxd1 {[%clk 0:00:04]}  Qxd1+ {[%clk 0:00:03]} 42. Kg2 {[%clk 0:00:05]}  Qd6 {[%clk 0:00:04]} 43. Rxh5 {[%clk 0:00:05]}  Qc6+ {[%clk 0:00:05]} 44. Qf3 {[%clk 0:00:05]}  Qxf3+ {[%clk 0:00:04]} 45. Kxf3 {[%clk 0:00:06]}  Rd2 {[%clk 0:00:04]} 46. Ra5 {[%clk 0:00:06]}  Rb2 {[%clk 0:00:04]} 47. Kg2 {[%clk 0:00:06]}  Kd7 {[%clk 0:00:04]} 48. g4 {[%clk 0:00:06]}  Kc6 {[%clk 0:00:05]} 49. Kg3 {[%clk 0:00:07]}  Kb6 {[%clk 0:00:05]} 50. Ra4 {[%clk 0:00:07]}  e5 {[%clk 0:00:05]} 51. g5 {[%clk 0:00:07]}  Kb5 {[%clk 0:00:06]} 52. Ra7 {[%clk 0:00:07]}  Kc6 {[%clk 0:00:06]} 53. Rxf7 {[%clk 0:00:07]}  Rxa2 {[%clk 0:00:06]} 54. Rf3 {[%clk 0:00:07]}  Ra1 {[%clk 0:00:07]} 55. Kg2 {[%clk 0:00:07]}  Ra7 {[%clk 0:00:07]} 56. g6 {[%clk 0:00:08]}  Kd5 {[%clk 0:00:08]} 57. Rg3 {[%clk 0:00:08]}  Rg7 {[%clk 0:00:09]} 58. Kf3 {[%clk 0:00:08]}  Kd4 {[%clk 0:00:09]} 59. Ke2 {[%clk 0:00:07]}  Ke4 {[%clk 0:00:08]} 60. b4 {[%clk 0:00:07]}  Kd4 {[%clk 0:00:09]} 61. Rg5 {[%clk 0:00:06]}  Ke4 {[%clk 0:00:08]} 62. b5 {[%clk 0:00:06]}  Kf4 {[%clk 0:00:09]} 63. Rg2 {[%clk 0:00:06]}  Kf5 {[%clk 0:00:10]} 64. b6 {[%clk 0:00:06]}  Kf6 {[%clk 0:00:10]} 65. Ke3 {[%clk 0:00:05]}  Rb7 {[%clk 0:00:11]} 66. g7 {[%clk 0:00:06]}  Rxb6 {[%clk 0:00:09]} 67. g8=Q {[%clk 0:00:06]}  e4 {[%clk 0:00:10]} 68. Rg6+ {[%clk 0:00:05]}  Ke5 {[%clk 0:00:10]} 69. Qg7+ {[%clk 0:00:05]}  Kf5 {[%clk 0:00:11]} 70. Rg5+ {[%clk 0:00:05]}  Ke6 {[%clk 0:00:11]} 71. Re5+ {[%clk 0:00:06]}  Kd6 {[%clk 0:00:11]} 72. Qe7+ {[%clk 0:00:07]}  Kc6 {[%clk 0:00:12]} 73. Rc5# {[%clk 0:00:07]} 1-0


[Site "https://www.chess.com"]

[Event "Titled Tuesday Blitz January 31 Early 2023"]
[White "Terry, Renato"]
[Black "Derjabin, Ilja"]
[WhiteFideId "3803457"]
[BlackFideId "14104768"]
[WhiteElo "2520"]
[BlackElo "2333"]
[Result "1-0"]
[Round "03"]
[TimeControl "180+2"]
[Date "2023.01.31"]
[WhiteClock "0:01:34"]
[BlackClock "0:00:02"]

1. e4 {[%clk 0:02:59]}  e6 {[%clk 0:02:59]} 2. d4 {[%clk 0:02:59]}  d5 {[%clk 0:03:00]} 3. exd5 {[%clk 0:02:59]}  exd5 {[%clk 0:03:00]} 4. Nf3 {[%clk 0:02:59]}  c5 {[%clk 0:02:55]} 5. Bb5+ {[%clk 0:02:58]}  Nc6 {[%clk 0:02:53]} 6. O-O {[%clk 0:02:58]}  Bd6 {[%clk 0:02:54]} 7. dxc5 {[%clk 0:02:57]}  Bxc5 {[%clk 0:02:53]} 8. Re1+ {[%clk 0:02:54]}  Ne7 {[%clk 0:02:53]} 9. Be3 {[%clk 0:02:54]}  Bxe3 {[%clk 0:02:51]} 10. Rxe3 {[%clk 0:02:55]}  O-O {[%clk 0:02:51]} 11. Bd3 {[%clk 0:02:44]}  h6 {[%clk 0:02:40]} 12. h3 {[%clk 0:02:43]}  d4 {[%clk 0:02:35]} 13. Re1 {[%clk 0:02:42]}  Nd5 {[%clk 0:02:31]} 14. Be4 {[%clk 0:02:42]}  Re8 {[%clk 0:02:16]} 15. Nxd4 {[%clk 0:02:37]}  Nf4 {[%clk 0:02:03]} 16. Nxc6 {[%clk 0:02:22]}  Qxd1 {[%clk 0:01:20]} 17. Rxd1 {[%clk 0:02:22]}  Rxe4 {[%clk 0:01:18]} 18. Rd8+ {[%clk 0:02:22]}  Kh7 {[%clk 0:01:18]} 19. Nd2 {[%clk 0:02:16]}  Re2 {[%clk 0:00:58]} 20. Na5 {[%clk 0:02:07]}  Ne6 {[%clk 0:00:42]} 21. Rd6 {[%clk 0:02:02]}  b6 {[%clk 0:00:41]} 22. Nac4 {[%clk 0:01:58]}  Ba6 {[%clk 0:00:39]} 23. Ne3 {[%clk 0:01:58]}  Rc8 {[%clk 0:00:31]} 24. Rd1 {[%clk 0:01:52]}  Nf4 {[%clk 0:00:25]} 25. h4 {[%clk 0:01:45]}  g5 {[%clk 0:00:22]} 26. hxg5 {[%clk 0:01:44]}  hxg5 {[%clk 0:00:23]} 27. Ne4 {[%clk 0:01:44]}  Ne6 {[%clk 0:00:17]} 28. Nc3 {[%clk 0:01:38]}  Rxc3 {[%clk 0:00:09]} 29. bxc3 {[%clk 0:01:39]}  Kg6 {[%clk 0:00:09]} 30. R6d2 {[%clk 0:01:38]}  Nf4 {[%clk 0:00:08]} 31. c4 {[%clk 0:01:37]}  Bb7 {[%clk 0:00:03]} 32. g3 {[%clk 0:01:34]}  Nh3+ {[%clk 0:00:02]} 33. Kf1 {[%clk 0:01:34]} 1-0


[Site "https://www.chess.com"]

[Event "Titled Tuesday Blitz January 31 Early 2023"]
[White "Defend, Balint"]
[Black "Howell, David W L"]
[WhiteFideId "17004853"]
[BlackFideId "410608"]
[WhiteElo "1673"]
[BlackElo "2677"]
[Result "0-1"]
[Round "03"]
[TimeControl "180+2"]
[Date "2023.01.31"]
[WhiteClock "0:00:04"]
[BlackClock "0:01:03"]

1. e4 {[%clk 0:03:00]}  c6 {[%clk 0:02:59]} 2. d4 {[%clk 0:03:00]}  d5 {[%clk 0:03:00]} 3. e5 {[%clk 0:03:00]}  Bf5 {[%clk 0:03:00]} 4. h4 {[%clk 0:03:00]}  c5 {[%clk 0:02:59]} 5. g4 {[%clk 0:02:52]}  Bd7 {[%clk 0:02:59]} 6. f4 {[%clk 0:02:38]}  cxd4 {[%clk 0:02:57]} 7. h5 {[%clk 0:02:22]}  Nc6 {[%clk 0:02:54]} 8. c3 {[%clk 0:02:03]}  Nh6 {[%clk 0:02:40]} 9. Bh3 {[%clk 0:01:56]}  dxc3 {[%clk 0:02:31]} 10. Nxc3 {[%clk 0:01:55]}  e6 {[%clk 0:02:27]} 11. Be3 {[%clk 0:01:31]}  d4 {[%clk 0:01:39]} 12. Bxd4 {[%clk 0:01:30]}  Nxd4 {[%clk 0:01:40]} 13. Qxd4 {[%clk 0:01:30]}  Bc6 {[%clk 0:01:41]} 14. Qxd8+ {[%clk 0:01:21]}  Rxd8 {[%clk 0:01:41]} 15. Rh2 {[%clk 0:01:15]}  Bc5 {[%clk 0:01:42]} 16. Nge2 {[%clk 0:00:46]}  f6 {[%clk 0:01:26]} 17. exf6 {[%clk 0:00:37]}  gxf6 {[%clk 0:01:27]} 18. g5 {[%clk 0:00:38]}  fxg5 {[%clk 0:01:26]} 19. fxg5 {[%clk 0:00:39]}  Nf7 {[%clk 0:01:27]} 20. Bxe6 {[%clk 0:00:18]}  Nxg5 {[%clk 0:01:27]} 21. Bg4 {[%clk 0:00:18]}  O-O {[%clk 0:01:23]} 22. Rd1 {[%clk 0:00:18]}  Rde8 {[%clk 0:01:18]} 23. Rd3 {[%clk 0:00:18]}  Bf3 {[%clk 0:01:14]} 24. Rh4 {[%clk 0:00:16]}  Bxe2 {[%clk 0:01:07]} 25. Bxe2 {[%clk 0:00:02]}  Bf2+ {[%clk 0:01:06]} 26. Kd2 {[%clk 0:00:03]}  Bxh4 {[%clk 0:01:07]} 27. Rd4 {[%clk 0:00:04]}  Be1+ {[%clk 0:01:03]} 28. Kc2 {[%clk 0:00:04]}  Bxc3 {[%clk 0:01:03]} 0-1


[Site "https://www.chess.com"]